fUSD/lending_fUSD_20260111
["ID","MTS","AMOUNT","RATE_DAILY","PERIOD"]
[401390692,1768174252030,-151.0,0.00017976,2]
[401390693,1768174252040,-151.0,0.00017976,2]
[401390694,1768174252049,-345.270868,0.00017976,2]
[401390695,1768174252059,-345.270868,0.00017976,2]
[401390696,1768174252069,-345.270868,0.00017976,2]
[401390697,1768174252078,-151.0,0.00017976,2]
[401390698,1768174252089,-345.270868,0.00017976,2]
[401390699,1768174252099,-151.0,0.00017976,2]
[401390700,1768174252109,-167.941407,0.00017976,2]
[401390701,1768174252119,-151.0,0.00017976,2]
[401390702,1768174252133,-151.0,0.00017976,2]
[401390703,1768174252144,-151.0,0.00017976,2]
[401390704,1768174252154,-151.0,0.00017976,2]
[401390705,1768174252164,-151.0,0.00017976,2]
[401390706,1768174252173,-151.0,0.00017976,2]
[401390707,1768174252183,-151.0,0.00017976,2]
[401390708,1768174252193,-151.0,0.00017976,2]
[401390709,1768174252203,-151.0,0.00017976,2]
[401390710,1768174252212,-151.0,0.00017976,2]
[401390711,1768174252223,-151.0,0.00017976,2]
[401390712,1768174252233,-380.840895,0.00017976,2]
[401390713,1768174252243,-380.840895,0.00017976,2]
[401390714,1768174252253,-151.0,0.00017976,2]
[401390715,1768174252262,-380.840895,0.00017976,2]
[401390716,1768174252272,-380.840895,0.00017976,2]
[401390717,1768174252282,-151.0,0.00017976,2]
[401390718,1768174252292,-1330.670353,0.00017976,2]
[401390719,1768174252302,-1330.670353,0.00017976,2]
[401390720,1768174252312,-151.0,0.00017976,2]
[401390721,1768174252321,-1330.670353,0.00017976,2]
[401390722,1768174252331,-1330.670353,0.00017976,2]
[401390723,1768174252341,-151.0,0.00017976,2]
[401390724,1768174252352,-662.145373,0.00017976,2]
[401390725,1768174252362,-281.191201,0.00017976,2]
[401390726,1768174252372,-662.145373,0.00017976,2]
[401390727,1768174252382,-662.145373,0.00017976,2]
[401390728,1768174252392,-662.145373,0.00017976,2]
[401390729,1768174252402,-151.0,0.00017976,2]
[401390730,1768174252411,-151.0,0.00017976,2]
[401390731,1768174252421,-151.0,0.00017976,2]
[401390732,1768174252431,-151.0,0.00017976,2]
[401390733,1768174252441,-219.778136,0.00017976,2]
[401390734,1768174252451,-151.0,0.00017976,2]
[401390735,1768174252460,-151.0,0.00017976,2]
[401390736,1768174252470,-151.0,0.00017976,2]
[401390737,1768174252479,-151.0,0.00017976,2]
[401390738,1768174252489,-151.0,0.00017976,2]
[401390739,1768174252499,-617.330805,0.00017976,2]
[401390740,1768174252508,-151.0,0.00017976,2]
[401390741,1768174252521,-617.330805,0.00017976,2]
[401390742,1768174252531,-617.330805,0.00017976,2]
[401390743,1768174252541,-617.330805,0.00017976,2]
[401390744,1768174252551,-151.0,0.00017976,2]
[401390745,1768174252562,-151.0,0.00017976,2]
[401390746,1768174252572,-151.0,0.00017976,2]
[401390747,1768174252582,-151.0,0.00017976,2]
[401390748,1768174252594,-4700.883777,0.00017976,2]
[401390749,1768174252604,-280.30467,0.00017976,2]
[401390750,1768174252614,-154.922684,0.00017976,2]
[401390751,1768174252624,-4700.883777,0.00017976,2]
[401390752,1768174252635,-4700.883777,0.00017976,2]
[401390753,1768174252645,-4700.883777,0.00017976,2]
[401390754,1768174252655,-790.895146,0.00017976,2]
[401390755,1768174252665,-387.144329,0.00017976,2]
[401390756,1768174252678,-387.144329,0.00017976,2]
[401390757,1768174252688,-790.895146,0.00017976,2]
[401390758,1768174252698,-151.0,0.00017976,2]
[401390759,1768174252708,-387.144329,0.00017976,2]
[401390760,1768174252718,-790.895146,0.00017976,2]
[401390761,1768174252728,-151.0,0.00017976,2]
[401390762,1768174252738,-387.144329,0.00017976,2]
[401390763,1768174252748,-265.427214,0.00017976,2]
[401390764,1768174252758,-790.895146,0.00017976,2]
[401390765,1768174252768,-151.0,0.00017976,2]
[401390766,1768174252777,-265.427214,0.00017976,2]
[401390767,1768174252787,-265.427214,0.00017976,2]
[401390768,1768174252797,-656.27507,0.00017976,2]
[401390769,1768174252807,-265.427214,0.00017976,2]
[401390770,1768174252817,-656.27507,0.00017976,2]
[401390771,1768174252827,-656.27507,0.00017976,2]
[401390772,1768174252836,-656.27507,0.00017976,2]
[401390773,1768174252846,-151.0,0.00017976,2]
[401390774,1768174252855,-151.0,0.00017976,2]
[401390775,1768174252865,-151.0,0.00017976,2]
[401390776,1768174252874,-780.949003,0.00017976,2]
[401390777,1768174252884,-203.441097,0.00017976,2]
[401390778,1768174252893,-151.0,0.00017976,2]
[401390779,1768174252903,-780.949003,0.00017976,2]
[401390780,1768174252912,-151.0,0.00017976,2]
[401390781,1768174252921,-151.0,0.00017976,2]
[401390782,1768174252931,-780.949003,0.00017976,2]
[401390783,1768174252940,-151.0,0.00017976,2]
[401390784,1768174252949,-151.0,0.00017976,2]
[401390785,1768174252959,-169.229302,0.00017976,2]
[401390786,1768174252968,-780.949003,0.00017976,2]
[401390787,1768174253117,-151.0,0.00017976,2]
[401390788,1768174253127,-170.500208,0.00017976,2]
[401390789,1768174253137,-170.500208,0.00017976,2]
[401390790,1768174253146,-170.500208,0.00017976,2]
[401390791,1768174253156,-170.500208,0.00017976,2]
[401390792,1768174253166,-151.0,0.00017976,2]
[401390793,1768174253175,-151.0,0.00017976,2]
[401390794,1768174253183,-246.453607,0.00017976,2]
[401390795,1768174253193,-151.0,0.00017976,2]
[401390796,1768174253202,-246.453607,0.00017976,2]
[401390797,1768174253211,-151.0,0.00017976,2]
[401390798,1768174253220,-716.799137,0.00017976,2]
[401390799,1768174253230,-151.0,0.00017976,2]
[401390800,1768174253239,-247.444459,0.00017976,2]
[401390801,1768174253248,-246.453607,0.00017976,2]
[401390802,1768174253258,-716.799137,0.00017976,2]
[401390803,1768174253267,-246.453607,0.00017976,2]
[401390804,1768174253277,-716.799137,0.00017976,2]
[401390805,1768174253286,-716.799137,0.00017976,2]
[401390806,1768174253296,-151.0,0.00017976,2]
[401390807,1768174253306,-151.0,0.00017976,2]
[401390808,1768174253315,-151.0,0.00017976,2]
[401390809,1768174253324,-929.163466,0.00017976,2]
[401390810,1768174253333,-165.117805,0.00017976,2]
[401390811,1768174253342,-929.163466,0.00017976,2]
[401390812,1768174253351,-151.0,0.00017976,2]
[401390813,1768174253361,-425.048909,0.00017976,2]
[401390814,1768174253370,-506.865865,0.00017976,2]
[401390815,1768174253379,-1026.274913,0.00017976,2]
[401390816,1768174253390,-425.048909,0.00017976,2]
[401390817,1768174253403,-174.000186,0.00017976,2]
[401390818,1768174253412,-506.865865,0.00017976,2]
[401390819,1768174253422,-1026.274913,0.00017976,2]
[401390820,1768174253431,-151.0,0.00017976,2]
[401390821,1768174253440,-425.048909,0.00017976,2]
[401390822,1768174253451,-174.000186,0.00017976,2]
[401390823,1768174253460,-506.865865,0.00017976,2]
[401390824,1768174253470,-1026.274913,0.00017976,2]
[401390825,1768174253479,-929.163466,0.00017976,2]
[401390826,1768174253489,-174.000186,0.00017976,2]
[401390827,1768174253499,-425.048909,0.00017976,2]
[401390828,1768174253508,-506.865865,0.00017976,2]
[401390829,1768174253520,-216.190039,0.00017976,2]
[401390830,1768174253530,-929.163466,0.00017976,2]
[401390831,1768174253539,-1026.274913,0.00017976,2]
[401390832,1768174253549,-174.000186,0.00017976,2]
[401390833,1768174253560,-151.0,0.00017976,2]
[401390834,1768174253570,-151.0,0.00017976,2]
[401390835,1768174253580,-1965.222408,0.00017976,2]
[401390836,1768174253591,-164.943241,0.00017976,2]
[401390837,1768174253601,-347.443825,0.00017976,2]
[401390838,1768174253610,-1965.222408,0.00017976,2]
[401390839,1768174253620,-164.943241,0.00017976,2]
[401390840,1768174253629,-347.443825,0.00017976,2]
[401390841,1768174253639,-1965.222408,0.00017976,2]
[401390842,1768174253648,-192.571095,0.00017976,2]
[401390843,1768174253658,-164.943241,0.00017976,2]
[401390844,1768174253668,-160.683881,0.00017976,2]
[401390845,1768174253678,-1965.222408,0.00017976,2]
[401390846,1768174253687,-347.443825,0.00017976,2]
[401390847,1768174253697,-192.571095,0.00017976,2]
[401390848,1768174253706,-164.943241,0.00017976,2]
[401390849,1768174253716,-347.443825,0.00017976,2]
[401390850,1768174253725,-192.571095,0.00017976,2]
[401390851,1768174253735,-192.571095,0.00017976,2]
[401390852,1768174253744,-1060.855532,0.00017976,2]
[401390853,1768174253754,-1060.855532,0.00017976,2]
[401390854,1768174253764,-2068.70979,0.00017976,2]
[401390855,1768174253773,-1060.855532,0.00017976,2]
[401390856,1768174253783,-2068.70979,0.00017976,2]
[401390857,1768174253793,-1060.855532,0.00017976,2]
[401390858,1768174253803,-2068.70979,0.00017976,2]
[401390859,1768174253813,-2068.70979,0.00017976,2]
[401390860,1768174253822,-156.464707,0.00017976,2]
[401390861,1768174253831,-681.018501,0.00017976,2]
[401390862,1768174253841,-681.018501,0.00017976,2]
[401390863,1768174253851,-499.566603,0.00017976,2]
[401390864,1768174253860,-681.018501,0.00017976,2]
[401390865,1768174253869,-681.018501,0.00017976,2]
[401390866,1768174253879,-499.566603,0.00017976,2]
[401390867,1768174253888,-499.566603,0.00017976,2]
[401390868,1768174253898,-499.566603,0.00017976,2]
[401390869,1768174253907,-376.100976,0.00017976,2]
[401390870,1768174253917,-376.100976,0.00017976,2]
[401390871,1768174253926,-376.100976,0.00017976,2]
[401390872,1768174253935,-169.722798,0.00017976,2]
[401390873,1768174253944,-376.100976,0.00017976,2]
[401390874,1768174253954,-2061.870797,0.00017976,2]
[401390875,1768174253963,-151.0,0.00017976,2]
[401390876,1768174253972,-2061.870797,0.00017976,2]
[401390877,1768174253981,-2061.870797,0.00017976,2]
[401390878,1768174253991,-151.0,0.00017976,2]
[401390879,1768174254000,-2061.870797,0.00017976,2]
[401390880,1768174254009,-210.425724,0.00017976,2]
[401390881,1768174254019,-151.0,0.00017976,2]
[401390882,1768174254028,-151.0,0.00017976,2]
[401390883,1768174254037,-151.0,0.00017976,2]
[401390884,1768174254047,-151.0,0.00017976,2]
[401390885,1768174254056,-151.0,0.00017976,2]
[401390886,1768174254066,-151.0,0.00017976,2]
[401390887,1768174254075,-151.0,0.00017976,2]
[401390888,1768174254084,-151.0,0.00017976,2]
[401390889,1768174254094,-151.0,0.00017976,2]
[401390890,1768174254104,-1000.0,0.00017978,2]
[401390891,1768174254113,-152.75103688,0.00017982,2]
[401390892,1768174254123,-500.0,0.00017982,2]
[401390893,1768174254133,-1000.0,0.00017988,2]
[401390894,1768174254143,-1504.84669514,0.0001799,2]
[401390895,1768174254152,-560.0541474,0.0001799,2]
[401390896,1768174254169,-1000.0,0.00017998,2]
[401390897,1768174254181,-300.0,0.00017999,2]
[401390898,1768174254191,-300.0,0.00017999,2]
[401390899,1768174254200,-300.0,0.00017999,2]
[401390900,1768174254209,-14299.25708922,0.00017999,2]
[401390901,1768174254219,-300.0,0.00017999,2]
[401390902,1768174254228,-300.0,0.00017999,2]
[401390903,1768174254237,-666.0,0.00017999,2]
[401390904,1768174254247,-598702.18797791,0.00018,2]
[401390905,1768174254257,-242.46445098,0.00018,2]
[401390906,1768174254267,-500.0,0.00018,2]
[401390907,1768174254276,-500.0,0.00018,2]
[401390908,1768174254286,-500.0,0.00018,2]
[401390909,1768174254296,-500.0,0.00018,2]
[401390910,1768174254305,-500.0,0.00018,2]
[401390911,1768174254315,-500.0,0.00018,2]
[401390912,1768174254324,-500.0,0.00018,2]
[401390913,1768174254334,-500.0,0.00018,2]
[401390914,1768174254343,-500.0,0.00018,2]
[401390915,1768174254353,-500.0,0.00018,2]
[401390916,1768174254363,-500.0,0.00018,2]
[401390917,1768174254373,-500.0,0.00018,2]
[401390918,1768174254382,-500.0,0.00018,2]
[401390919,1768174254392,-500.0,0.00018,2]
[401390920,1768174254402,-500.0,0.00018,2]
[401390921,1768174254412,-500.0,0.00018,2]
[401390922,1768174254421,-500.0,0.00018,2]
[401390923,1768174254431,-500.0,0.00018,2]
[401390924,1768174254441,-500.0,0.00018,2]
[401390925,1768174254451,-500.0,0.00018,2]
[401390926,1768174254460,-493.4,0.00018,2]
[401390927,1768174254469,-2561733.06642412,0.00018,2]
[401390928,1768174255073,-2732.7300008,0.00018,2]
[401390929,1768174255085,-467.97099624,0.00018,2]
[401390930,1768174255305,-1330.0,0.00017548,2]
[401390931,1768174255314,-3403.244906,0.00017788,2]
[401390932,1768174255323,-3403.244906,0.00017788,2]
[401390933,1768174255332,-3403.244906,0.00017788,2]
[401390934,1768174255341,-698.14990608,0.00017795,2]
[401390935,1768174255351,-151.0,0.00017976,2]
[401390936,1768174255360,-3403.244906,0.00017976,2]
[401390937,1768174255369,-3403.244906,0.00017976,2]
[401390938,1768174255379,-3403.244906,0.00017976,2]
[401390939,1768174255388,-4245.00110689,0.00018,2]
[401390940,1768174255418,-361693.57706222,0.00018,2]
[401390941,1768174255429,-5286.694357,0.00018,2]
[401390942,1768174255447,-777.45991394,0.00018,2]
[401390943,1768174255458,-2011.75052409,0.00018,2]
[401390944,1768174255469,-711.72117664,0.00018,2]
[401390945,1768174255480,-1165.976181,0.00018,2]
[401390946,1768174255566,-301.0,0.000176,2]
[401390947,1768174255576,-674.43176676,0.00018,2]
[401390948,1768174255587,-639.81943298,0.00018,2]
[401390949,1768174255598,-967.5145513,0.00018,2]
[401390950,1768174255611,-475.3447729,0.00018,2]
[401390951,1768174255622,-3817.54959322,0.00018,2]
[401390952,1768174255633,-2165.5560001,0.00018,2]
[401390953,1768174255644,-1384.00984328,0.00018,2]
[401390954,1768174255667,-264.09338163,0.00018,2]
[401390955,1768174255679,-569.93088227,0.00018,2]
[401390956,1768174255690,-7293.29476398,0.00018,2]
[401390957,1768174255705,-4290.69453194,0.00018,2]
[401390958,1768174255716,-643.53639791,0.00018,2]
[401390959,1768174255760,-1118.4173,0.00017788,2]
[401390960,1768174255772,-2083.3743243,0.00017788,2]
[401390961,1768174255784,-201.4532817,0.00017788,2]
[401390962,1768174255793,-87.31544407,0.00018,2]
[401390963,1768174255805,-3184.6982721,0.00018,2]
[401390964,1768174255816,-3991.11810199,0.00018,2]
[401390965,1768174323537,1101.0,0.00013465,2]
[401390966,1768174324407,355.64078974,0.00011487,2]
[401390967,1768174328652,1101.0,0.00013409,2]
[401390968,1768174372386,319.7711,0.00013379,2]
[401390969,1768174386137,1074.54,8.46e-05,2]
[401390970,1768174386372,1074.54,8.888e-05,2]
[401390971,1768174386586,1074.54,9.316e-05,2]
[401390972,1768174386785,1074.54,9.744e-05,2]
[401390973,1768174387001,1074.54,0.00010172,2]
[401390974,1768174387210,1074.54,0.00010599,2]
[401390975,1768174387626,675.35811026,0.00011027,2]
[401390976,1768174387655,399.18188974,0.00011027,2]
[401390977,1768174387823,1074.54,0.00011455,2]
[401390978,1768174388033,1074.54,0.00011883,2]
[401390979,1768174388288,1074.54,0.00012311,2]
[401390980,1768174388496,1074.54,0.00012738,2]
[401390981,1768174388705,1074.54,0.00013166,2]
[401390982,1768174396488,4228.12811026,0.00013379,2]
[401390983,1768174396521,10000.01,0.00013379,2]
[401390984,1768174396554,10000.01,0.00013379,2]
[401390985,1768174396582,10000.01,0.00013379,2]
[401390986,1768174396610,10000.01,0.00013379,2]
[401390987,1768174443701,169.44,0.00012796,2]
[401390988,1768174503380,-3077.0434,0.00013279,2]
[401390989,1768174503413,-1200.0,0.00013378,2]
[401390990,1768174503446,-300.0,0.00013378,2]
[401390991,1768174503480,-300.0,0.00013378,2]
[401390992,1768174510636,200.0,0.000129,4]
[401390993,1768174514124,245.9232,0.00013369,2]
[401390994,1768174515773,-4080.97676521,0.00013369,2]
[401390995,1768174547850,-2055.69922,0.00013302,2]
[401390996,1768174547881,-1838.05646958,0.00013369,2]
[401390997,1768174549849,1000.0,0.000129,4]
[401390998,1768174561595,300.0,0.00013378,2]
[401390999,1768174562540,150.0,0.00013378,2]
[401391000,1768174563009,300.0,0.00013378,2]
[401391001,1768174578732,1462.49862084,0.00013294,2]
[401391002,1768174587676,-2460.94477021,0.00013294,2]
[401391003,1768174587708,-423.59390245,0.00013294,2]
[401391005,1768174613565,750.332204,0.00013312,2]
[401391006,1768174643730,-1027.16954522,0.00013287,2]
[401391007,1768174646146,-152.68088658,0.00013287,2]
[401391008,1768174647583,-300.0,0.00013287,2]
[401391009,1768174649666,-300.0,0.00013287,2]
[401391010,1768174651704,-300.0,0.00013287,2]
[401391011,1768174654378,-233.31822963,0.00013287,2]
[401391012,1768174659331,-477.18286113,0.00013287,2]
[401391013,1768174662462,-155.04733483,0.00013287,2]
[401391014,1768174664038,-221.1910972,0.00013287,2]
[401391015,1768174666155,-247.27177859,0.00013287,2]
[401391016,1768174668156,-222.0,0.00013287,2]
[401391017,1768174671942,-301.98869862,0.00013287,2]
[401391018,1768174679897,-1905.14679859,0.00013287,2]
[401391019,1768174679928,-415.21820036,0.00013287,2]
[401391020,1768174679958,-415.21820036,0.00013287,2]
[401391021,1768174679991,-300.0,0.00013378,2]
[401391022,1768174681188,300.0,0.00013378,2]
[401391023,1768174688527,408.32110539,0.00013187,2]
[401391024,1768174694564,408.32110537,0.00013237,2]
[401391025,1768174695795,1200.0,0.00013378,2]
[401391026,1768174700480,408.32110537,0.00013287,2]
[401391028,1768174765734,-346.26496114,0.00013287,2]
[401391029,1768174765764,-150.0,0.00013378,2]
[401391030,1768174765793,-300.0,0.00013378,2]
[401391031,1768174765828,-500.0,0.00013378,2]
[401391032,1768174765865,-500.0,0.00013378,2]
[401391033,1768174765900,-223.12539066,0.00013378,2]
[401391034,1768174765932,-500.0,0.00013378,2]
[401391035,1768174765966,-500.0,0.00013378,2]
[401391036,1768174777784,-349.03312016,0.00013379,2]
[401391037,1768174787848,238.823,0.00013112,2]
[401391038,1768174787890,3604.825,0.00013112,2]
[401391039,1768174818328,-300.0,0.00013378,2]
[401391040,1768174818358,-300.0,0.00013378,2]
[401391041,1768174818388,-300.0,0.00013378,2]
[401391042,1768174818418,-1200.0,0.00013378,2]
[401391043,1768174818447,-260.0,0.00013379,2]
[401391044,1768174825488,382.29153235,0.00013287,2]
[401391045,1768174837970,382.29153235,0.00013287,2]
[401391046,1768174863396,294.7123336,0.00013287,2]
[401391047,1768174921505,300.0,0.00013378,2]
[401391048,1768174922587,300.0,0.00013378,2]
[401391049,1768174922783,150.0,0.00013378,2]
[401391050,1768174926160,200.0,0.00013379,2]
[401391051,1768174927821,-300.0,0.00013379,2]
[401391052,1768174929870,500.0,0.00013379,2]
[401391053,1768174930495,500.0,0.00013379,2]
[401391054,1768174931080,500.0,0.00013379,2]
[401391055,1768174931371,151.0,0.00013379,2]
[401391056,1768174931613,-339.44339648,0.00013379,2]
[401391057,1768174931671,500.0,0.00013379,2]
[401391058,1768174932031,151.0,0.00013379,2]
[401391059,1768174932279,500.0,0.00013379,2]
[401391060,1768174932634,151.0,0.00013379,2]
[401391061,1768174932890,317.7146017,0.00013379,2]
[401391062,1768174932917,182.2853983,0.00013379,2]
[401391063,1768174933315,151.0,0.00013379,2]
[401391064,1768174933800,170.66940434,0.00013379,2]
[401391065,1768174933928,151.0,0.00013379,2]
[401391066,1768174934557,151.0,0.00013379,2]
[401391067,1768174934753,-166.64583723,0.00013379,2]
[401391068,1768174935210,151.0,0.00013379,2]
[401391069,1768174935775,151.0,0.00013379,2]
[401391070,1768174936555,-298.54134994,0.00013379,2]
[401391071,1768174936605,151.0,0.00013379,2]
[401391072,1768174937535,151.0,0.00013379,2]
[401391073,1768174938151,151.0,0.00013379,2]
[401391074,1768174938688,-258.03100393,0.00013379,2]
[401391075,1768174938755,151.0,0.00013379,2]
[401391076,1768174939532,151.0,0.00013379,2]
[401391077,1768174940185,151.0,0.00013379,2]
[401391078,1768174940813,151.0,0.00013379,2]
[401391079,1768174941446,151.0,0.00013379,2]
[401391080,1768174942073,151.0,0.00013379,2]
[401391081,1768174942995,151.0,0.00013379,2]
[401391082,1768174943305,151.0,0.00013379,2]
[401391083,1768174943948,151.0,0.00013379,2]
[401391084,1768174946087,151.0,0.00013379,2]
[401391085,1768174947203,151.0,0.00013379,2]
[401391086,1768174947393,220.33119323,0.00013379,2]
[401391087,1768174947434,289.11476837,0.00013379,2]
[401391088,1768174947499,151.0,0.00013379,2]
[401391089,1768174948041,151.0,0.00013379,2]
[401391090,1768174948678,151.0,0.00013379,2]
[401391091,1768174949283,151.0,0.00013379,2]
[401391092,1768174949896,151.0,0.00013379,2]
[401391093,1768174950533,151.0,0.00013379,2]
[401391094,1768174950893,151.0,0.00013379,2]
[401391095,1768174951155,151.0,0.00013379,2]
[401391096,1768174952181,151.0,0.00013379,2]
[401391097,1768174952403,151.0,0.00013379,2]
[401391098,1768174953015,151.0,0.00013379,2]
[401391099,1768174953633,151.0,0.00013379,2]
[401391100,1768174957056,2191.7621,0.00013279,2]
[401391101,1768174957802,-155.03310647,0.00013379,2]
[401391102,1768174959045,500.0,0.00013378,2]
[401391103,1768174959127,-311.5501207,0.00013379,2]
[401391104,1768174960675,-151.80254426,0.00013379,2]
[401391105,1768174963797,-396.53446097,0.00013379,2]
[401391106,1768174964348,1764.84713576,0.00013283,2]
[401391107,1768174964375,3279.58447599,0.00013283,2]
[401391108,1768174966243,-166.37816147,0.00013379,2]
[401391109,1768174968900,-337.273836,0.00013379,2]
[401391110,1768174969316,592.15166026,0.00013378,2]
[401391111,1768174971345,-302.01870332,0.00013379,2]
[401391112,1768174973217,-266.13990607,0.00013379,2]
[401391113,1768174981072,1101.0,0.00013279,2]
[401391114,1768174981984,286.71864928,0.00013283,2]
[401391115,1768174985781,1101.0,0.00013279,2]
[401391116,1768174994312,286.71864928,0.00013283,2]
[401391117,1768175003702,258.70286076,0.00013283,2]
[401391118,1768175008848,1000.0,0.00013279,2]
[401391119,1768175017909,-179.17683286,0.00013379,2]
[401391120,1768175088521,2094.13370443,0.00013279,2]
[401391121,1768175088550,765.10589557,0.00013279,2]
[401391122,1768175101296,1200.0,0.00013378,2]
[401391123,1768175101365,248.0,0.00013378,2]
[401391124,1768175102714,150.0,0.00013378,2]
[401391125,1768175102950,300.0,0.00013378,2]
[401391126,1768175105410,300.0,0.00013378,2]
[401391127,1768175107116,200.0,0.00013379,2]
[401391128,1768175137529,215.03898696,0.00013283,2]
[401391129,1768175137586,1000.0,0.00013279,2]
[401391130,1768175140164,215.03898696,0.00013283,2]
[401391131,1768175146954,172.46857384,0.00013283,2]
[401391132,1768175148929,5234.35755667,0.00013283,2]
[401391133,1768175148954,2157.81746637,0.00013283,2]
[401391134,1768175161248,300.0,0.00013378,2]
[401391135,1768175182980,2500.0,0.00013279,2]
[401391136,1768175224999,200.0,0.00013379,2]
[401391137,1768175230059,-293.28941566,0.00013379,2]
[401391138,1768175234163,151.0,0.00013379,2]
[401391139,1768175234781,151.0,0.00013379,2]
[401391140,1768175235384,151.0,0.00013379,2]
[401391141,1768175236207,151.0,0.00013379,2]
[401391142,1768175254796,1200.0,0.000129,4]
[401391143,1768175282515,150.0,0.00013378,2]
[401391144,1768175287701,187.858446,0.00013283,2]
[401391145,1768175287746,-184.95506135,0.00013379,2]
[401391146,1768175288280,1000.0,0.00013279,2]
[401391147,1768175290463,172.46857382,0.00013283,2]
[401391148,1768175293206,-177.69284393,0.00013379,2]
[401391149,1768175300402,187.858446,0.00013283,2]
[401391150,1768175302724,-208.56556313,0.00013379,2]
[401391151,1768175304377,270.64458704,0.00013309,2]
[401391152,1768175304821,-182.87252571,0.00013379,2]
[401391153,1768175306866,-300.0,0.00013379,2]
[401391154,1768175309544,-188.43518359,0.00013379,2]
[401391155,1768175312832,2269.36248077,0.00013279,2]
[401391156,1768175312858,230.63751923,0.00013279,2]
[401391157,1768175341189,300.0,0.00013378,2]
[401391158,1768175350241,-684.7358,0.00013379,2]
[401391159,1768175351375,5443.08731831,0.00013309,2]
[401391160,1768175351414,5478.0,0.000141,5]
[401391161,1768175360114,-19255.54780895,0.00013379,2]
[401391162,1768175367090,-638.72665138,0.00013379,2]
[401391163,1768175401211,1200.0,0.00013378,2]
[401391164,1768175401248,300.0,0.00013378,2]
[401391165,1768175404353,260.0,0.00013379,2]
[401391167,1768175420749,182.03782617,0.00013287,2]
[401391168,1768175429077,2084.24733629,0.00013279,2]
[401391169,1768175429105,10000.01,0.00013279,2]
[401391170,1768175429132,10000.01,0.00013279,2]
[401391171,1768175429161,10000.01,0.00013279,2]
[401391172,1768175429190,10000.01,0.00013279,2]
[401391173,1768175429218,10000.01,0.00013279,2]
[401391174,1768175429247,10000.01,0.00013279,2]
[401391175,1768175429275,10000.01,0.00013279,2]
[401391176,1768175429303,10000.01,0.00013279,2]
[401391177,1768175429331,10000.01,0.00013279,2]
[401391184,1768175431386,-331.8054328,0.00013279,2]
[401391190,1768175431434,-461.17361602,0.00013279,2]
[401391192,1768175431445,-391.92938006,0.00013279,2]
[401391194,1768175431485,-407.74984699,0.00013279,2]
[401391195,1768175431534,-931.89,0.00013279,2]
[401391196,1768175431578,-2430.08348929,0.00013279,2]
[401391197,1768175431589,-10560.77801067,0.00013279,2]
[401391198,1768175431599,-25542.70333611,0.00013279,2]
[401391199,1768175431620,-273.483,0.00013279,2]
[401391231,1768175437632,-1364.22985899,0.00013279,2]
[401391415,1768175439691,-6834.8962765,0.00013279,2]
[401391421,1768175439735,-472.77483408,0.00013279,2]
[401391426,1768175439776,-857912.1655822,0.00013279,2]
[401391428,1768175439785,-195.0,0.00013387,2]
[401391430,1768175439795,-250.0,0.00013394,2]
[401391432,1768175439804,-1101.0,0.00013409,2]
[401391434,1768175439813,-250.0,0.00013468,2]